fUSD/lending_fUSD_20250113
["ID","MTS","AMOUNT","RATE_DAILY","PERIOD"]
[348718580,1736748639879,-891.02,0.00010133,2]
[348718581,1736748639889,-891.02,0.00010135,2]
[348718582,1736748639898,-489.53,0.00010137,2]
[348718583,1736748639907,-378.05,0.00010137,2]
[348718584,1736748639921,-891.02,0.00010138,2]
[348718585,1736748639930,-1000.0,0.00010218,2]
[348718586,1736748639939,-1534.95,0.0001027,2]
[348718587,1736748639948,-793.85,0.0001027,2]
[348718588,1736748639957,-613.27,0.0001027,2]
[348718589,1736748639966,-1839.74,0.0001027,2]
[348718590,1736748639975,-500.0,0.0001027,2]
[348718591,1736748639984,-588.59,0.0001027,2]
[348718592,1736748639993,-500.0,0.0001027,2]
[348718593,1736748640003,-1179.2,0.0001027,2]
[348718594,1736748640012,-500.0,0.0001027,2]
[348718595,1736748640022,-500.0,0.0001027,2]
[348718596,1736748640032,-500.0,0.0001027,2]
[348718597,1736748640041,-500.0,0.0001027,2]
[348718598,1736748640050,-561.11,0.0001027,2]
[348718599,1736748640061,-500.0,0.0001027,2]
[348718600,1736748640070,-1479.56,0.0001027,2]
[348718601,1736748640079,-500.0,0.0001027,2]
[348718602,1736748640092,-500.0,0.00010271,2]
[348718603,1736748640101,-500.0,0.00010271,2]
[348718604,1736748640110,-500.0,0.00010271,2]
[348718605,1736748640120,-500.0,0.00010271,2]
[348718606,1736748640129,-500.0,0.00010271,2]
[348718607,1736748640138,-361.47376988,0.00010271,2]
[348718608,1736748640147,-500.0,0.00010271,2]
[348718609,1736748640157,-500.0,0.00010271,2]
[348718610,1736748640169,-501.23001669,0.00010271,2]
[348718611,1736748640179,-500.0,0.00010271,2]
[348718612,1736748640188,-500.0,0.00010271,2]
[348718613,1736748640197,-500.0,0.00010271,2]
[348718614,1736748640207,-500.0,0.00010271,2]
[348718615,1736748640217,-500.0,0.00010271,2]
[348718616,1736748640227,-500.0,0.00010271,2]
[348718617,1736748640236,-500.0,0.00010271,2]
[348718619,1736748640245,-500.0,0.00010271,2]
[348718621,1736748640255,-500.0,0.00010271,2]
[348718622,1736748640264,-500.0,0.00010271,2]
[348718623,1736748640273,-500.0,0.00010271,2]
[348718624,1736748640282,-500.0,0.00010271,2]
[348718625,1736748640291,-500.0,0.00010271,2]
[348718626,1736748640301,-500.0,0.00010271,2]
[348718627,1736748640310,-500.0,0.00010271,2]
[348718628,1736748640318,-585.79,0.00010271,2]
[348718629,1736748640330,-500.0,0.00010271,2]
[348718630,1736748640339,-500.0,0.00010271,2]
[348718631,1736748640348,-507.71328639,0.00010271,2]
[348718632,1736748640357,-500.0,0.00010271,2]
[348718633,1736748640366,-500.0,0.00010271,2]
[348718634,1736748640375,-500.0,0.00010271,2]
[348718635,1736748640385,-500.0,0.00010271,2]
[348718636,1736748640394,-500.0,0.00010271,2]
[348718637,1736748640405,-500.0,0.00010271,2]
[348718638,1736748640415,-500.0,0.00010271,2]
[348718639,1736748640425,-500.0,0.00010271,2]
[348718640,1736748640434,-500.0,0.00010271,2]
[348718641,1736748640443,-500.0,0.00010271,2]
[348718642,1736748640452,-500.0,0.00010271,2]
[348718643,1736748640461,-500.0,0.00010271,2]
[348718644,1736748640470,-500.0,0.00010271,2]
[348718645,1736748640479,-500.0,0.00010271,2]
[348718646,1736748640488,-500.0,0.00010271,2]
[348718647,1736748640498,-500.0,0.00010271,2]
[348718648,1736748640518,-500.0,0.00010271,2]
[348718649,1736748640527,-501.03177746,0.00010271,2]
[348718650,1736748640538,-500.0,0.00010271,2]
[348718651,1736748640547,-500.0,0.00010271,2]
[348718652,1736748640556,-500.0,0.00010271,2]
[348718653,1736748640566,-500.0,0.00010271,2]
[348718654,1736748640575,-500.0,0.00010271,2]
[348718655,1736748640584,-500.0,0.00010271,2]
[348718656,1736748640594,-500.0,0.00010271,2]
[348718657,1736748640603,-500.0,0.00010271,2]
[348718658,1736748640613,-500.0,0.00010271,2]
[348718659,1736748640622,-474.31697419,0.00010271,2]
[348718660,1736748640632,-500.0,0.00010271,2]
[348718661,1736748640641,-500.0,0.00010271,2]
[348718662,1736748640651,-500.0,0.00010271,2]
[348718663,1736748640661,-500.0,0.00010271,2]
[348718664,1736748640670,-500.0,0.00010271,2]
[348718665,1736748640680,-500.0,0.00010271,2]
[348718666,1736748640690,-500.0,0.00010271,2]
[348718667,1736748640699,-500.0,0.00010271,2]
[348718668,1736748640708,-509.25954793,0.00010271,2]
[348718669,1736748640720,-500.0,0.00010271,2]
[348718670,1736748640732,-500.0,0.00010271,2]
[348718671,1736748640743,-500.0,0.00010271,2]
[348718672,1736748640753,-500.0,0.00010271,2]
[348718673,1736748640763,-500.0,0.00010271,2]
[348718674,1736748640773,-500.0,0.00010271,2]
[348718675,1736748640782,-501.08349705,0.00010271,2]
[348718676,1736748640792,-500.0,0.00010271,2]
[348718677,1736748640801,-500.0,0.00010271,2]
[348718678,1736748640811,-502.76797211,0.00010271,2]
[348718679,1736748640821,-500.0,0.00010271,2]
[348718680,1736748640831,-500.0,0.00010271,2]
[348718681,1736748640841,-500.0,0.00010271,2]
[348718682,1736748640851,-500.0,0.00010271,2]
[348718683,1736748640860,-500.0,0.00010271,2]
[348718684,1736748640870,-500.0,0.00010271,2]
[348718685,1736748640879,-500.0,0.00010271,2]
[348718686,1736748640889,-500.0,0.00010271,2]
[348718687,1736748640899,-500.0,0.00010271,2]
[348718688,1736748640910,-500.0,0.00010271,2]
[348718689,1736748640920,-500.0,0.00010271,2]
[348718690,1736748640929,-500.0,0.00010271,2]
[348718691,1736748640939,-500.0,0.00010271,2]
[348718692,1736748640948,-500.0,0.00010271,2]
[348718693,1736748640959,-500.0,0.00010271,2]
[348718694,1736748640968,-500.0,0.00010271,2]
[348718695,1736748640977,-500.0,0.00010271,2]
[348718696,1736748640990,-500.0,0.00010271,2]
[348718697,1736748640999,-500.0,0.00010271,2]
[348718698,1736748641009,-500.0,0.00010271,2]
[348718699,1736748641018,-500.0,0.00010271,2]
[348718700,1736748641028,-500.0,0.00010271,2]
[348718701,1736748641037,-500.0,0.00010271,2]
[348718702,1736748641048,-500.0,0.00010271,2]
[348718703,1736748641057,-500.0,0.00010271,2]
[348718704,1736748641067,-500.0,0.00010271,2]
[348718705,1736748641076,-500.0,0.00010271,2]
[348718706,1736748641086,-500.0,0.00010271,2]
[348718707,1736748641099,-500.0,0.00010271,2]
[348718708,1736748641108,-500.0,0.00010271,2]
[348718709,1736748641118,-500.0,0.00010271,2]
[348718710,1736748641127,-500.0,0.00010271,2]
[348718711,1736748641136,-500.0,0.00010271,2]
[348718712,1736748641145,-500.0,0.00010271,2]
[348718713,1736748641154,-500.0,0.00010271,2]
[348718714,1736748641164,-500.0,0.00010271,2]
[348718715,1736748641174,-500.0,0.00010271,2]
[348718716,1736748641183,-500.0,0.00010271,2]
[348718717,1736748641193,-500.0,0.00010271,2]
[348718718,1736748641202,-500.0,0.00010271,2]
[348718719,1736748641211,-500.0,0.00010271,2]
[348718720,1736748641220,-500.0,0.00010271,2]
[348718721,1736748641230,-500.0,0.00010271,2]
[348718722,1736748641239,-500.0,0.00010271,2]
[348718723,1736748641248,-500.0,0.00010271,2]
[348718724,1736748641257,-502.63534614,0.00010271,2]
[348718725,1736748641266,-500.0,0.00010271,2]
[348718726,1736748641276,-500.0,0.00010271,2]
[348718727,1736748641285,-500.0,0.00010271,2]
[348718728,1736748641294,-500.0,0.00010271,2]
[348718729,1736748641303,-500.0,0.00010271,2]
[348718730,1736748641313,-500.0,0.00010271,2]
[348718731,1736748641323,-500.0,0.00010271,2]
[348718732,1736748641336,-500.0,0.00010271,2]
[348718733,1736748641345,-500.0,0.00010271,2]
[348718734,1736748641355,-500.0,0.00010271,2]
[348718735,1736748641364,-500.0,0.00010271,2]
[348718736,1736748641375,-500.0,0.00010271,2]
[348718737,1736748641383,-500.0,0.00010271,2]
[348718738,1736748641392,-500.0,0.00010271,2]
[348718739,1736748641403,-500.0,0.00010271,2]
[348718740,1736748641415,-500.0,0.00010271,2]
[348718741,1736748641424,-500.0,0.00010271,2]
[348718742,1736748641434,-500.0,0.00010271,2]
[348718743,1736748641444,-500.0,0.00010271,2]
[348718744,1736748641453,-500.0,0.00010271,2]
[348718745,1736748641463,-500.0,0.00010271,2]
[348718746,1736748641472,-500.0,0.00010271,2]
[348718747,1736748641482,-500.0,0.00010271,2]
[348718748,1736748641491,-500.0,0.00010271,2]
[348718749,1736748641501,-500.0,0.00010271,2]
[348718750,1736748641511,-402.28535036,0.00010271,2]
[348718751,1736748641520,-510.22,0.00010271,2]
[348718752,1736748641529,-500.0,0.00010271,2]
[348718753,1736748641539,-505.46530885,0.00010271,2]
[348718754,1736748641548,-500.0,0.00010271,2]
[348718755,1736748641558,-500.0,0.00010271,2]
[348718756,1736748641567,-508.59787523,0.00010271,2]
[348718757,1736748641577,-459.9495385,0.00010271,2]
[348718758,1736748641586,-500.0,0.00010271,2]
[348718759,1736748641595,-500.0,0.00010271,2]
[348718760,1736748641604,-500.0,0.00010271,2]
[348718761,1736748641613,-500.0,0.00010271,2]
[348718762,1736748641623,-500.0,0.00010271,2]
[348718763,1736748641632,-500.0,0.00010271,2]
[348718764,1736748641641,-500.0,0.00010271,2]
[348718765,1736748641650,-500.0,0.00010271,2]
[348718766,1736748641659,-500.0,0.00010271,2]
[348718767,1736748641669,-500.0,0.00010271,2]
[348718768,1736748641678,-500.0,0.00010271,2]
[348718769,1736748641688,-500.0,0.00010271,2]
[348718770,1736748641697,-500.0,0.00010271,2]
[348718771,1736748641706,-500.0,0.00010271,2]
[348718772,1736748641715,-500.0,0.00010271,2]
[348718773,1736748641725,-500.0,0.00010271,2]
[348718774,1736748641735,-501.6916105,0.00010271,2]
[348718775,1736748641744,-504.48393882,0.00010271,2]
[348718776,1736748641753,-500.0,0.00010271,2]
[348718777,1736748641762,-500.0,0.00010271,2]
[348718778,1736748641772,-500.0,0.00010271,2]
[348718779,1736748641781,-500.0,0.00010271,2]
[348718780,1736748641791,-500.0,0.00010271,2]
[348718781,1736748641800,-500.0,0.00010271,2]
[348718782,1736748641809,-500.0,0.00010271,2]
[348718783,1736748641818,-500.0,0.00010271,2]
[348718784,1736748641827,-500.0,0.00010271,2]
[348718785,1736748641837,-500.0,0.00010271,2]
[348718786,1736748641846,-500.0,0.00010271,2]
[348718787,1736748641855,-500.0,0.00010271,2]
[348718788,1736748641864,-500.0,0.00010271,2]
[348718789,1736748641873,-500.0,0.00010271,2]
[348718790,1736748641882,-500.0,0.00010271,2]
[348718791,1736748641891,-231.30913473,0.00010271,2]
[348718792,1736748641900,-500.0,0.00010271,2]
[348718793,1736748641911,-500.0,0.00010271,2]
[348718794,1736748641920,-501.87226658,0.00010271,2]
[348718795,1736748641929,-500.0,0.00010271,2]
[348718796,1736748641940,-500.41911442,0.00010271,2]
[348718797,1736748641950,-500.0,0.00010271,2]
[348718798,1736748641959,-500.0,0.00010271,2]
[348718799,1736748641968,-501.44664239,0.00010271,2]
[348718800,1736748641978,-500.0,0.00010271,2]
[348718801,1736748641987,-2499.79,0.00010271,2]
[348718802,1736748641997,-500.0,0.00010271,2]
[348718803,1736748642006,-500.0,0.00010271,2]
[348718804,1736748642015,-500.0,0.00010271,2]
[348718805,1736748642025,-500.0,0.00010271,2]
[348718806,1736748642035,-500.0,0.00010271,2]
[348718807,1736748642044,-500.0,0.00010271,2]
[348718808,1736748642053,-500.0,0.00010271,2]
[348718809,1736748642063,-500.0,0.00010271,2]
[348718810,1736748642072,-500.0,0.00010271,2]
[348718811,1736748642082,-500.0,0.00010271,2]
[348718812,1736748642093,-500.0,0.00010271,2]
[348718813,1736748642102,-500.0,0.00010271,2]
[348718814,1736748642112,-500.0,0.00010271,2]
[348718815,1736748642122,-500.0,0.00010271,2]
[348718816,1736748642131,-501.74479011,0.00010271,2]
[348718817,1736748642141,-500.0,0.00010271,2]
[348718818,1736748642150,-500.0,0.00010271,2]
[348718819,1736748642161,-500.0,0.00010271,2]
[348718820,1736748642172,-500.0,0.00010271,2]
[348718821,1736748642182,-1971.39,0.00010271,2]
[348718822,1736748642193,-500.0,0.00010271,2]
[348718823,1736748642203,-500.0,0.00010271,2]
[348718824,1736748642213,-507.68705644,0.00010271,2]
[348718825,1736748642223,-500.0,0.00010271,2]
[348718826,1736748642233,-500.0,0.00010271,2]
[348718827,1736748642244,-500.0,0.00010271,2]
[348718828,1736748642254,-500.0,0.00010271,2]
[348718830,1736748642263,-500.0,0.00010271,2]
[348718832,1736748642273,-506.49161331,0.00010271,2]
[348718833,1736748642283,-500.0,0.00010271,2]
[348718834,1736748642294,-500.0,0.00010271,2]
[348718835,1736748642304,-500.0,0.00010271,2]
[348718836,1736748642315,-502.75139085,0.00010271,2]
[348718837,1736748642326,-500.0,0.00010271,2]
[348718838,1736748642339,-500.0,0.00010271,2]
[348718839,1736748642349,-500.0,0.00010271,2]
[348718840,1736748642359,-1760.49,0.00010271,2]
[348718841,1736748642368,-500.0,0.00010271,2]
[348718842,1736748642379,-503.9721402,0.00010271,2]
[348718843,1736748642388,-503.81734584,0.00010271,2]
[348718844,1736748642398,-500.0,0.00010271,2]
[348718845,1736748642412,-500.0,0.00010271,2]
[348718846,1736748642423,-500.0,0.00010271,2]
[348718847,1736748642433,-500.0,0.00010271,2]
[348718848,1736748642443,-505.17729436,0.00010271,2]
[348718849,1736748642452,-500.0,0.00010271,2]
[348718850,1736748642462,-500.0,0.00010271,2]
[348718851,1736748642471,-504.01152674,0.00010271,2]
[348718852,1736748642480,-500.0,0.00010271,2]
[348718853,1736748642490,-1774.52,0.00010271,2]
[348718855,1736748642499,-500.0,0.00010271,2]
[348718856,1736748642509,-502.84024744,0.00010271,2]
[348718857,1736748642519,-500.0,0.00010271,2]
[348718858,1736748642528,-393.0135906,0.00010271,2]
[348718859,1736748642539,-500.0,0.00010271,2]
[348718860,1736748642548,-500.0,0.00010271,2]
[348718861,1736748642558,-500.0,0.00010271,2]
[348718862,1736748642567,-500.0,0.00010271,2]
[348718863,1736748642576,-500.0,0.00010271,2]
[348718864,1736748642586,-459.50789066,0.00010271,2]
[348718865,1736748642596,-500.0,0.00010271,2]
[348718866,1736748642605,-500.0,0.00010271,2]
[348718867,1736748642614,-500.0,0.00010271,2]
[348718868,1736748642623,-500.0,0.00010271,2]
[348718869,1736748642632,-500.0,0.00010271,2]
[348718870,1736748642642,-202.79248963,0.00010271,2]
[348718871,1736748642651,-500.0,0.00010271,2]
[348718872,1736748642827,-500.0,0.00010271,2]
[348718873,1736748642836,-500.0,0.00010271,2]
[348718874,1736748642845,-500.0,0.00010271,2]
[348718875,1736748642854,-500.0,0.00010271,2]
[348718876,1736748642864,-500.0,0.00010271,2]
[348718877,1736748642873,-626.72443006,0.00010271,2]
[348718878,1736748642883,-635.6876136,0.00010271,2]
[348718879,1736748642893,-502.77021046,0.00010271,2]
[348718880,1736748642902,-508.20119983,0.00010271,2]
[348718881,1736748642913,-500.0,0.00010271,2]
[348718882,1736748642922,-500.0,0.00010271,2]
[348718883,1736748642931,-500.0,0.00010271,2]
[348718884,1736748642940,-500.0,0.00010271,2]
[348718885,1736748642950,-505.27246082,0.00010271,2]
[348718886,1736748642960,-500.0,0.00010271,2]
[348718887,1736748642970,-500.0,0.00010271,2]
[348718888,1736748642979,-501.72105384,0.00010271,2]
[348718889,1736748642989,-501.54527292,0.00010271,2]
[348718890,1736748642998,-512.56,0.00010271,2]
[348718891,1736748643007,-500.0,0.00010271,2]
[348718893,1736748643017,-500.0,0.00010271,2]
[348718894,1736748643026,-500.0,0.00010271,2]
[348718895,1736748643036,-500.0,0.00010271,2]
[348718896,1736748643046,-320.4754177,0.00010271,2]
[348718897,1736748643056,-500.0,0.00010271,2]
[348718898,1736748643066,-500.0,0.00010271,2]
[348718899,1736748643075,-502.18317858,0.00010271,2]
[348718900,1736748643084,-500.0,0.00010271,2]
[348718901,1736748643094,-500.0,0.00010271,2]
[348718902,1736748643103,-500.0,0.00010271,2]
[348718903,1736748643112,-503.09637272,0.00010271,2]
[348718904,1736748643121,-501.62509503,0.00010271,2]
[348718905,1736748643130,-500.0,0.00010271,2]
[348718906,1736748643140,-500.0,0.00010271,2]
[348718907,1736748643150,-501.30072302,0.00010271,2]
[348718908,1736748643159,-500.0,0.00010271,2]
[348718909,1736748643169,-500.0,0.00010271,2]
[348718910,1736748643179,-500.0,0.00010271,2]
[348718911,1736748643189,-501.649893,0.00010271,2]
[348718912,1736748643199,-500.0,0.00010271,2]
[348718913,1736748643208,-500.0,0.00010271,2]
[348718914,1736748643218,-500.0,0.00010271,2]
[348718915,1736748643227,-500.0,0.00010271,2]
[348718916,1736748643236,-500.0,0.00010271,2]
[348718917,1736748643246,-500.0,0.00010271,2]
[348718918,1736748643257,-500.75263181,0.00010271,2]
[348718919,1736748643266,-825.62,0.00010272,2]
[348718920,1736748643275,-500.0,0.00010272,2]
[348718921,1736748643286,-500.0,0.00010272,2]
[348718922,1736748643295,-535.55,0.00010272,2]
[348718923,1736748643303,-500.0,0.00010272,2]
[348718924,1736748643313,-500.0,0.00010272,2]
[348718925,1736748643323,-500.0,0.00010272,2]
[348718926,1736748643335,-500.0,0.00010272,2]
[348718927,1736748643344,-505.45465083,0.00010272,2]
[348718928,1736748643353,-656.21,0.00010272,2]
[348718929,1736748643362,-336.7182533,0.00010272,2]
[348718930,1736748643372,-501.74123412,0.00010272,2]
[348718931,1736748643381,-500.0,0.00010272,2]
[348718932,1736748643390,-500.0,0.00010272,2]
[348718933,1736748643399,-533.96,0.00010272,2]
[348718934,1736748643410,-508.59971688,0.00010272,2]
[348718935,1736748643420,-500.0,0.00010272,2]
[348718936,1736748643429,-500.0,0.00010272,2]
[348718937,1736748643438,-500.0,0.00010272,2]
[348718938,1736748643447,-831.27,0.00010272,2]
[348718939,1736748643458,-504.7369464,0.00010272,2]
[348718940,1736748643468,-1120.56,0.00010272,2]
[348718941,1736748643477,-500.0,0.00010272,2]
[348718942,1736748643486,-500.0,0.00010272,2]
[348718943,1736748643495,-500.0,0.00010272,2]
[348718944,1736748643504,-848.83,0.00010272,2]
[348718945,1736748643514,-500.0,0.00010272,2]
[348718946,1736748643523,-500.0,0.00010272,2]
[348718947,1736748643532,-500.0,0.00010272,2]
[348718948,1736748643542,-500.0,0.00010272,2]
[348718949,1736748643551,-2057.32,0.00010272,2]
[348718950,1736748643561,-500.0,0.00010272,2]
[348718951,1736748643570,-847.54,0.00010272,2]
[348718952,1736748643579,-1444.9,0.00010272,2]
[348718953,1736748643589,-683.38,0.00010272,2]
[348718954,1736748643599,-822.29,0.00010272,2]
[348718955,1736748643608,-773.09,0.00010272,2]
[348718956,1736748643618,-1437.23,0.00010272,2]
[348718957,1736748643627,-613.73,0.00010272,2]
[348718958,1736748643636,-500.0,0.00010272,2]
[348718959,1736748643646,-717.623348,0.00010272,2]
[348718960,1736748643655,-709.26,0.00010272,2]
[348718961,1736748643666,-1904.22,0.00010272,2]
[348718962,1736748643675,-781.01624,0.00010272,2]
[348718963,1736748643684,-556.88,0.00010272,2]
[348718964,1736748643693,-500.0,0.00010272,2]
[348718965,1736748643702,-500.0,0.00010272,2]
[348718966,1736748643712,-500.0,0.00010272,2]
[348718967,1736748643721,-500.0,0.00010272,2]
[348718968,1736748643730,-500.0,0.00010272,2]
[348718969,1736748643739,-761.58,0.00010272,2]
[348718970,1736748643748,-1943.01,0.00010272,2]
[348718971,1736748643757,-599.84,0.00010272,2]
[348718972,1736748643767,-231193.59545939,0.00010272,2]
[348718973,1736748643776,-260.04959466,0.00010273,2]
[348718974,1736748643785,-500.26,0.00010273,2]
[348718975,1736748643794,-500.0,0.00010273,2]
[348718976,1736748643804,-579.06,0.00010273,2]
[348718977,1736748643813,-500.0,0.00010273,2]
[348718978,1736748643822,-538.74,0.00010273,2]
[348718979,1736748643832,-500.0,0.00010273,2]
[348718980,1736748643841,-500.0,0.00010273,2]
[348718981,1736748643850,-500.0,0.00010273,2]
[348718982,1736748643860,-500.0,0.00010273,2]
[348718983,1736748643869,-500.0,0.00010273,2]
[348718984,1736748643879,-500.0,0.00010273,2]
[348718985,1736748643889,-519.34711564,0.00010273,2]
[348718986,1736748643898,-500.0,0.00010273,2]
[348718987,1736748643907,-500.0,0.00010273,2]
[348718988,1736748643919,-500.0,0.00010273,2]
[348718989,1736748643928,-500.0,0.00010273,2]
[348718990,1736748643938,-500.0,0.00010273,2]
[348718991,1736748643947,-593.16,0.00010273,2]
[348718992,1736748643956,-500.0,0.00010273,2]
[348718993,1736748643965,-274.36,0.00010273,2]
[348718994,1736748643975,-500.0,0.00010273,2]
[348718995,1736748643983,-500.0,0.00010273,2]
[348718996,1736748643993,-500.0,0.00010273,2]
[348718997,1736748644002,-561.03,0.00010273,2]
[348718998,1736748644011,-500.0,0.00010273,2]
[348718999,1736748644020,-500.0,0.00010273,2]
[348719000,1736748644029,-545.75,0.00010273,2]
[348719001,1736748644038,-500.0,0.00010273,2]
[348719002,1736748644047,-500.0,0.00010273,2]
[348719003,1736748644056,-500.0,0.00010273,2]
[348719004,1736748644065,-598.34,0.00010273,2]
[348719005,1736748644075,-511.1773408,0.00010273,2]
[348719006,1736748644084,-557.95,0.00010273,2]
[348719007,1736748644093,-524.62267878,0.00010273,2]
[348719008,1736748644102,-567.25,0.00010273,2]
[348719009,1736748644111,-500.0,0.00010273,2]
[348719010,1736748644120,-500.0,0.00010273,2]
[348719011,1736748644129,-500.0,0.00010273,2]
[348719012,1736748644139,-500.0,0.00010273,2]
[348719013,1736748644148,-2860.34,0.00010273,2]
[348719014,1736748644158,-690.58,0.00010273,2]
[348719015,1736748644168,-500.0,0.00010273,2]
[348719016,1736748644178,-656.31,0.00010273,2]
[348719017,1736748644187,-672.9,0.00010273,2]
[348719018,1736748644196,-500.0,0.00010273,2]
[348719019,1736748644205,-500.0,0.00010273,2]
[348719020,1736748644215,-500.0,0.00010273,2]
[348719021,1736748644224,-500.0,0.00010273,2]
[348719022,1736748644234,-828.54,0.00010273,2]
[348719023,1736748644243,-1242.39,0.00010273,2]
[348719024,1736748644254,-500.0,0.00010273,2]
[348719025,1736748644263,-1005.42,0.00010273,2]
[348719026,1736748644274,-1234.58,0.00010273,2]
[348719027,1736748644283,-1033.53,0.00010273,2]
[348719028,1736748644292,-844.52,0.00010273,2]
[348719029,1736748644301,-500.0,0.00010273,2]
[348719030,1736748644310,-1923.89,0.00010273,2]
[348719031,1736748644319,-827.39,0.00010273,2]
[348719032,1736748644333,-1041.03,0.00010308,2]
[348719033,1736748644342,-21132.88,0.0001036,2]
[348719034,1736748644351,-616.42,0.00010374,2]
[348719035,1736748644360,-847.96,0.00010374,2]
[348719036,1736748644370,-3583.81,0.00010374,2]
[348719037,1736748644382,-500.0,0.00010374,2]
[348719038,1736748644392,-500.0,0.00010374,2]
[348719039,1736748644404,-690.81,0.00010374,2]
[348719040,1736748644415,-1173.49,0.00010374,2]
[348719041,1736748644424,-1307.94,0.00010374,2]
[348719042,1736748644433,-2121.67,0.00010374,2]
[348719043,1736748644442,-500.0,0.00010374,2]
[348719044,1736748644453,-588.81,0.00010374,2]
[348719045,1736748644463,-511.26,0.00010374,2]
[348719046,1736748644471,-929.02,0.00010374,2]
[348719047,1736748644481,-1095.98,0.00010374,2]
[348719048,1736748644492,-831.36,0.00010374,2]
[348719049,1736748644501,-1591.75,0.00010374,2]
[348719050,1736748644513,-749.68,0.00010374,2]
[348719051,1736748644523,-500.0,0.00010374,2]
[348719052,1736748644533,-749.66,0.00010381,2]
[348719053,1736748644543,-617.27,0.00010381,2]
[348719054,1736748644552,-500.0,0.00010381,2]
[348719055,1736748644561,-862.85,0.00010381,2]
[348719056,1736748644571,-500.0,0.00010381,2]
[348719057,1736748644580,-663.9,0.00010382,2]
[348719058,1736748644589,-3275.065,0.00010415,2]
[348719059,1736748644600,-211.308,0.00010415,2]
[348719060,1736748644610,-801.63,0.00010431,2]
[348719061,1736748644619,-182.5157555,0.00010445,2]
[348719062,1736748644628,-1534.95,0.00010544,2]
[348719063,1736748644637,-793.85,0.00010544,2]
[348719064,1736748644646,-613.27,0.00010544,2]
[348719065,1736748644655,-1839.74,0.00010544,2]
[348719066,1736748644666,-500.0,0.00010544,2]
[348719067,1736748644675,-588.59,0.00010544,2]
[348719068,1736748644684,-500.0,0.00010544,2]
[348719069,1736748644693,-1179.2,0.00010544,2]
[348719070,1736748644701,-500.0,0.00010544,2]
[348719071,1736748644710,-500.0,0.00010544,2]
[348719072,1736748644719,-207.84017639,0.00010544,2]
[348719073,1736748644728,-500.0,0.00010544,2]
[348719074,1736748644737,-561.11,0.00010544,2]
[348719075,1736748644746,-500.0,0.00010544,2]
[348719076,1736748644755,-1479.56,0.00010544,2]
[348719077,1736748644764,-500.0,0.00010544,2]
[348719078,1736748644774,-179.63652207,0.00010545,2]
[348719079,1736748644783,-641.3574679,0.00010545,2]
[348719080,1736748644792,-509.18290027,0.00010545,2]
[348719081,1736748644802,-500.0,0.00010545,2]
[348719082,1736748644811,-509.31430515,0.00010545,2]
[348719083,1736748644820,-585.79,0.00010545,2]
[348719084,1736748644828,-500.0,0.00010545,2]
[348719085,1736748644837,-500.0,0.00010545,2]